Departmental Family ,Entity,Transaction Number,Payment Date,Name,Expense Area,Supplier,Description,Base Amount
BIS,NMO,305256,28/01/2014,Equipment calibration,Certification Services ,Absolute Calibration Ltd,Calibration of equipment ,494
BIS,NMO,28179246,10/01/2014,Capital Contractors,Estates,AECOM Professional Services LLP,Project management services ,7395
BIS,NMO,28180718,28/01/2014,Capital Contractors,Estates,AECOM Professional Services LLP,Project management services ,7395
BIS,NMO,28179248,10/01/2014,Capital Contractors,Estates,AECOM Professional Services LLP,Cost management services ,11474.4
BIS,NMO,28180719,28/01/2014,Capital Contractors,Estates,AECOM Professional Services LLP,Cost management services ,11474.4
BIS,NMO,90359296,31/01/2014,Building Service Charges,Estates,Amey Community Limited,Water sampling for pollution,536.84
BIS,NMO,90357741,15/01/2014,Building Service Charges,Estates,Amey Community Limited,Minor works,3504.69
BIS,NMO,90358083,15/01/2014,Building construction,Estates,Amey Community Limited,Estates repairs / renewals,4450.58
BIS,NMO,90357603,15/01/2014,Building construction,Estates,Amey Community Limited,Estates repairs / renewals,8593.62
BIS,NMO,90357707,15/01/2014,Building Service Charges,Estates,Amey Community Limited,FM contract,9387.5
BIS,NMO,90358111,21/01/2014,Building construction,Estates,Amey Community Limited,Estates repairs / renewals,10307.5
BIS,NMO,90358086,31/01/2014,Building Service Charges,Estates,Amey Community Limited,Survey of buildings,11193.28
BIS,NMO,90357737,15/01/2014,Building construction,Estates,Amey Community Limited,Estates repairs / renewals,14380.26
BIS,NMO,90358108,21/01/2014,Building construction,Estates,Amey Community Limited,Estates repairs / renewals,21505.97
BIS,NMO,90357725,21/01/2014,Building construction,Estates,Amey Community Limited,Estates repairs / renewals,66938.6
BIS,NMO,90357604,15/01/2014,Building construction,Estates,Amey Community Limited,Estates repairs / renewals,84587.81
BIS,NMO,10055,21/01/2014,Equipment calibration,Certification Services ,AR United Kingdom,Calibration of equipment ,980
BIS,NMO,B-18072,08/01/2014,Miscellaneous,Enforcement ,Auto Mobile Valet Ltd,Valet of pool cars,87.5
BIS,NMO,27618507,31/01/2014,Stationery,Corporate Services,Banner Business Services Ltd,Stationery,11.31
BIS,NMO,27530106,21/01/2014,Stationery,Corporate Services,Banner Business Services Ltd,Stationery,75.48
BIS,NMO,27530105,21/01/2014,Stationery,Corporate Services,Banner Business Services Ltd,Stationery,277.34
BIS,NMO,27418305,08/01/2014,Stationery,Corporate Services,Banner Business Services Ltd,Stationery,487.67
BIS,NMO,BIPM 2014,09/01/2014,International Subscriptions,NMS Science Programmes,BIPM,BIPM 2014 subscription,434931.44
BIS,NMO,928159,17/01/2014,Training ,Corporate Services,BPP Professional Education Limited,Training,305.98
BIS,NMO,X27814,28/01/2014,Training ,Regulation,Capita Business Services Ltd,Training,104
BIS,NMO,X26374,15/01/2014,Training ,Certification Services ,Capita Business Services Ltd,Training,134
BIS,NMO,X27078,28/01/2014,Training ,Regulation,Capita Business Services Ltd,Training,134
BIS,NMO,X27079,28/01/2014,Training ,NMS Science Programmes,Capita Business Services Ltd,Training,134
BIS,NMO,X27076,28/01/2014,Training ,Corporate Services,Capita Business Services Ltd,Training,134
BIS,NMO,X27077,28/01/2014,Training ,Certification Services ,Capita Business Services Ltd,Training,160.8
BIS,NMO,3378,08/01/2014,IT Software Licences & Maintenance,Certification Services ,Centre for ISO9000 Limited,Visits database quarterly charge,600
BIS,NMO,812214,21/01/2014,Legal Services,Estates,CMS Cameron McKenna LLP,Company secretarial legal services,385
BIS,NMO,8915844,15/01/2014,Gas,Estates,Corona Energy Retail 4 Limited,Gas bill Dec to Jan,3576.53
BIS,NMO,480,08/01/2014,Contractors costs,Certification Services ,D&J Services Ltd,Contractors costs ,448.35
BIS,NMO,6.1511E+11,17/01/2014,Hospitality,Change & Development,Department for Business Innovation & Skills,Hospitality & room hire for meeting,237.75
BIS,NMO,6.1511E+11,17/01/2014,Hospitality,Change & Development,Department for Business Innovation & Skills,Hospitality & room hire for meeting,237.75
BIS,NMO,6.1511E+11,15/01/2014,Consultancy,NMS Science Programmes,Department for Business Innovation & Skills,Consultancy for decision conferencing,7677
BIS,NMO,HSC7871844,15/01/2014,Courier Services,Certification Services ,DHL International (UK) Ltd,Courier services ,348.53
BIS,NMO,590229,17/01/2014,Recruitment Advertising,Corporate Services,Disclosure Scotland,Disclosures for new staff,25
BIS,NMO,PK074118,08/01/2014,Training ,Regulation,Dods Parliamentary Communications Ltd,Training,245
BIS,NMO,PK074118,08/01/2014,Training ,Regulation,Dods Parliamentary Communications Ltd,Training,245
BIS,NMO,28776,28/01/2014,Equipment calibration,Certification Services ,Electronic Test & Calibration Ltd,Calibration of equipment ,88.91
BIS,NMO,28775,28/01/2014,Equipment calibration,Certification Services ,Electronic Test & Calibration Ltd,Calibration of equipment ,365.92
BIS,NMO,CRC Phase2 Reg,21/01/2014,Carbon reduction commitment payment,Estates,Environment Agency,CRC Phase 2 Registration,24.65
BIS,NMO,CRC Phase2 Reg,21/01/2014,Carbon reduction commitment payment,Estates,Environment Agency,CRC Phase 2 Registration,925.35
BIS,NMO,109591,28/01/2014,Equipment calibration,Certification Services ,Environmental & Technical Services Ltd,Quarterly maintenance contract charge,905.5
BIS,NMO,1005267775,28/01/2014,Contractors costs,Regulation,Essex County Council,Contractors costs ,500
BIS,NMO,624423,31/01/2014,Legal Services,Change & Development,Field Fisher Waterhouse LLP,Legal Services,25082.2
BIS,NMO,43037979,17/01/2014,Postage,Corporate Services,Francotyp Postalia Ltd,Franking machine postage ,1000
BIS,NMO,O99908,31/01/2014,Training ,NMS Science Programmes,Hemsley Fraser Group Ltd,Training ,499.5
BIS,NMO,2336885210,08/01/2014,Car Hire & Leasing,Certification Services ,Hertz UK Limited,Car hire,46.92
BIS,NMO,2346058040,28/01/2014,Car Hire & Leasing,Regulation,Hertz UK Limited,Car hire,46.92
BIS,NMO,2346018232,15/01/2014,Car Hire & Leasing,Regulation,Hertz UK Limited,Car hire,54.12
BIS,NMO,6801662,08/01/2014,IT Software licences & support,Corporate Services,Hewlett Packard Limited,IT Software licences & support,11550.24
BIS,NMO,J016916983,08/01/2014,Telecommunications,Corporate Services,Intercity Telecom Ltd,Mobile telephone calls and line rental,593.84
BIS,NMO,66511,28/01/2014,Hiring of Rooms and Facilities,Regulation,ITSA Limited,TSI conference booking,1143.6
BIS,NMO,1265,10/01/2014,Contractors costs,Certification Services ,Legal Metrology Consultancy Service,Contractors costs ,27.19
BIS,NMO,1270,28/01/2014,Contractors costs,Certification Services ,Legal Metrology Consultancy Service,Contractors costs ,309.6
BIS,NMO,1269,15/01/2014,Contractors costs,Certification Services ,Legal Metrology Consultancy Service,Contractors costs ,386.7
BIS,NMO,1267,15/01/2014,Contractors costs,Certification Services ,Legal Metrology Consultancy Service,Contractors costs ,423.9
BIS,NMO,1268,15/01/2014,Contractors costs,Certification Services ,Legal Metrology Consultancy Service,Contractors costs ,533.85
BIS,NMO,1271,28/01/2014,Contractors costs,Certification Services ,Legal Metrology Consultancy Service,Contractors costs ,744.24
BIS,NMO,1264,10/01/2014,Contractors costs,Certification Services ,Legal Metrology Consultancy Service,Contractors costs ,762.83
BIS,NMO,1263,10/01/2014,Contractors costs,Certification Services ,Legal Metrology Consultancy Service,Contractors costs ,855.9
BIS,NMO,1262,10/01/2014,Contractors costs,Certification Services ,Legal Metrology Consultancy Service,Contractors costs ,1034.79
BIS,NMO,1266,08/01/2014,Contractors costs,Certification Services ,Legal Metrology Consultancy Service,Contractors costs ,1094.44
BIS,NMO,13064,21/01/2014,Contractors costs,Certification Services ,LegMetConsult,Contractors costs ,488.4
BIS,NMO,113837,08/01/2014,Scientific Equipment,Certification Services ,LGG Charlesworth Ltd,Scientific equipment,550.82
BIS,NMO,113891,08/01/2014,Scientific Equipment,Certification Services ,LGG Charlesworth Ltd,Scientific equipment,1090.85
BIS,NMO,116036,28/01/2014,Telecommunications,Corporate Services,Maintel Voice & Data Limited,Telephone calls & line rental,1576.48
BIS,NMO,115395,08/01/2014,Telecommunications,Corporate Services,Maintel Voice & Data Limited,Telephone calls & line rental,1817.3
BIS,NMO,393920,17/01/2014,Equipment calibration,Certification Services ,Mettler-Toledo Ltd,Weights for resale,445.94
BIS,NMO,Q337882,08/01/2014,Marketing,Corporate Services,NLA media access limited,Annual copyright licence,520.8
BIS,NMO,55757,31/01/2014,Contractors costs,Change & Development,NPL Management Ltd,NPL Demobilisation costs ,163200
BIS,NMO,O311303,08/01/2014,Contractors costs,Certification Services ,Omega ,Flights for contractors,92.96
BIS,NMO,O311620,08/01/2014,Contractors costs,Certification Services ,Omega ,Flights for contractors,228.79
BIS,NMO,O312197,28/01/2014,Contractors costs,Certification Services ,Omega ,Flights for contractors,231.2
BIS,NMO,O312787,28/01/2014,Contractors costs,Certification Services ,Omega ,Flights for contractors,1252.75
BIS,NMO,Cert 2013/3350,23/01/2014,OIML Certificate Registration Fees,Certification Services ,Organisation Internationale de Metrologie Legale,OIML Certificate Registration Fees,6142.38
BIS,NMO,OIML 2014,09/01/2014,International subscriptions,NMS Science Programmes,Organisation Internationale de Metrologie Legale,International subscriptions,46715.2
BIS,NMO,1354100849,28/01/2014,Consultancy,Change & Development,PricewaterhouseCoopers LLP,Project consultancy fees,39318
BIS,NMO,GBE173848,10/01/2014,Laboratory Testing,Regulation,SGS United Kingdom Ltd,Gas meter dispute testing,18974.22
BIS,NMO,851707,15/01/2014,Computer Peripherals,Corporate Services,Softcat Limited,Computer peripherals,671.39
BIS,NMO,INV883688,28/01/2014,Computer Peripherals,Corporate Services,Softcat Limited,Computer peripherals,2061.5
BIS,NMO,106111,08/01/2014,Miscellaneous,Corporate Services,Techclean Services Ltd,Telephone cleaning,57.42
BIS,NMO,35852,28/01/2014,Plant & Machinery Additions,Enforcement ,Telonic Instruments Ltd,Power supply,6612
BIS,NMO,27/12/2013,15/01/2014,Water,Estates,Thames Water Utilities Ltd,Water bill Sept - Dec,2904.22
BIS,NMO,14/01/2014,21/01/2014,Hospitality,Certification Services ,The Cavan Bakery,Hospitality ,-14.4
BIS,NMO,24/01/2014,28/01/2014,Hospitality,Estates,The Cavan Bakery,Hospitality,67.98
BIS,NMO,14/01/2014,21/01/2014,Hospitality,Certification Services ,The Cavan Bakery,Hospitality ,75.24
BIS,NMO,16/01/2014,28/01/2014,Hospitality,Change & Development,The Cavan Bakery,Hospitality  ,120.6
BIS,NMO,15/01/2014,17/01/2014,Hospitality,NMS Science Programmes,The Cavan Bakery,Hospitality,400.08
BIS,NMO,42542,31/01/2014,Hiring of Rooms and Facilities,NMS Science Programmes,The Lensbury,Science Programme conference,2747.85
BIS,NMO,INV07531,21/01/2014,Hiring of Rooms and Facilities,NMS Science Programmes,The Park Hotel,Engineering & Flow programme,102
BIS,NMO,INV07530,21/01/2014,Hiring of Rooms and Facilities,NMS Science Programmes,The Park Hotel,Engineering & Flow programme,102
BIS,NMO,INV07532,21/01/2014,Hiring of Rooms and Facilities,NMS Science Programmes,The Park Hotel,Engineering & Flow programme,102
BIS,NMO,INV07533,21/01/2014,Hiring of Rooms and Facilities,NMS Science Programmes,The Park Hotel,Engineering & Flow programme,102
BIS,NMO,INV07536,21/01/2014,Hiring of Rooms and Facilities,NMS Science Programmes,The Park Hotel,Engineering & Flow programme,102
BIS,NMO,INV07535,21/01/2014,Hiring of Rooms and Facilities,NMS Science Programmes,The Park Hotel,Engineering & Flow programme,102
BIS,NMO,INV07537,21/01/2014,Hiring of Rooms and Facilities,NMS Science Programmes,The Park Hotel,Engineering & Flow programme,102
BIS,NMO,INV07538,21/01/2014,Hiring of Rooms and Facilities,NMS Science Programmes,The Park Hotel,Engineering & Flow programme,102
BIS,NMO,INV07539,21/01/2014,Hiring of Rooms and Facilities,NMS Science Programmes,The Park Hotel,Engineering & Flow programme,102
BIS,NMO,INV07540,21/01/2014,Hiring of Rooms and Facilities,NMS Science Programmes,The Park Hotel,Engineering & Flow programme,102
BIS,NMO,INV07541,21/01/2014,Hiring of Rooms and Facilities,NMS Science Programmes,The Park Hotel,Engineering & Flow programme,102
BIS,NMO,INV07542,21/01/2014,Hiring of Rooms and Facilities,NMS Science Programmes,The Park Hotel,Engineering & Flow programme,102
BIS,NMO,INV07543,21/01/2014,Hiring of Rooms and Facilities,NMS Science Programmes,The Park Hotel,Engineering & Flow programme,102
BIS,NMO,INV07544,21/01/2014,Hiring of Rooms and Facilities,NMS Science Programmes,The Park Hotel,Engineering & Flow programme,102
BIS,NMO,INV07545,21/01/2014,Hiring of Rooms and Facilities,NMS Science Programmes,The Park Hotel,Engineering & Flow programme,102
BIS,NMO,INV07534,21/01/2014,Hiring of Rooms and Facilities,NMS Science Programmes,The Park Hotel,Engineering & Flow programme,102
BIS,NMO,INV07546,21/01/2014,Hiring of Rooms and Facilities,NMS Science Programmes,The Park Hotel,Engineering & Flow programme,102
BIS,NMO,INV07549,21/01/2014,Hiring of Rooms and Facilities,NMS Science Programmes,The Park Hotel,Engineering & Flow programme,1046.85
BIS,NMO,026158/14,08/01/2014,Professional Bodies Subscriptions,Regulation,Trading Standards Institute,TSI membership renewal,97
BIS,NMO,023896/14,08/01/2014,Professional Bodies Subscriptions,Regulation,Trading Standards Institute,TSI membership renewal,97
BIS,NMO,910670/14,08/01/2014,Professional Bodies Subscriptions,Regulation,Trading Standards Institute,TSI membership renewal,97
BIS,NMO,910548/14,10/01/2014,Professional Bodies Subscriptions,Regulation,Trading Standards Institute,TSI membership renewal,97
BIS,NMO,025134/14,31/01/2014,Professional Bodies Subscriptions,Enforcement ,Trading Standards Institute,TSI membership renewal,98
BIS,NMO,910346/14,31/01/2014,Professional Bodies Subscriptions,Enforcement ,Trading Standards Institute,TSI membership renewal,98
BIS,NMO,910340/14,31/01/2014,Professional Bodies Subscriptions,Enforcement ,Trading Standards Institute,TSI membership renewal,98
BIS,NMO,025135/14,31/01/2014,Professional Bodies Subscriptions,Enforcement ,Trading Standards Institute,TSI membership renewal,98
BIS,NMO,910342/14,31/01/2014,Professional Bodies Subscriptions,Enforcement ,Trading Standards Institute,TSI membership renewal,98
BIS,NMO,910344/14,31/01/2014,Professional Bodies Subscriptions,Enforcement ,Trading Standards Institute,TSI membership renewal,98
BIS,NMO,016949/14,31/01/2014,Professional Bodies Subscriptions,Enforcement ,Trading Standards Institute,TSI membership renewal,123
BIS,NMO,TRI538736,15/01/2014,IT Services,Corporate Services,Triad ,IT helpdesk support,3360
BIS,NMO,INV2047480,28/01/2014,Furniture,Estates,Triumph Furniture Ltd,Furniture,128.52
BIS,NMO,62,28/01/2014,Contractors costs,Certification Services ,TSPL Consulting Ltd,Contractors costs ,687.74
BIS,NMO,61,15/01/2014,Contractors costs,Certification Services ,TSPL Consulting Ltd,Contractors costs ,818.58
BIS,NMO,56,08/01/2014,Contractors costs,Certification Services ,TSPL Consulting Ltd,Contractors costs ,1182.12
BIS,NMO,1790028041,08/01/2014,NMS Science Programmes,NMS Science Programmes,TUV SUD Ltd,Engineering & Flow programme,39750
BIS,NMO,1790028049,08/01/2014,NMS Science Programmes,NMS Science Programmes,TUV SUD Ltd,Engineering & Flow programme,109500
BIS,NMO,1790028010,08/01/2014,NMS Science Programmes,NMS Science Programmes,TUV SUD Ltd,Engineering & Flow programme,111000
